[Event "Titled Tuesday Blitz November 29 Late 2022"]
[White "Melian, Juan Sebastian"]
[Black "Urazayev, Arystanbek"]
[WhiteFideId "3706575"]
[BlackFideId "13709810"]
[WhiteElo "2044"]
[BlackElo "2441"]
[Result "1-0"]
[Round "10"]
[TimeControl "180+1"]
[Date "2022.11.30"]
[WhiteClock "0:00:06"]
[BlackClock "0:00:07"]

1. d4 {[%clk 0:03:00]}  Nf6 {[%clk 0:02:59]} 2. c4 {[%clk 0:03:01]}  g6 {[%clk 0:03:00]} 3. Nc3 {[%clk 0:03:01]}  Bg7 {[%clk 0:03:01]} 4. e4 {[%clk 0:03:02]}  d6 {[%clk 0:03:02]} 5. f3 {[%clk 0:03:02]}  O-O {[%clk 0:03:02]} 6. Be3 {[%clk 0:03:03]}  c5 {[%clk 0:03:03]} 7. Nge2 {[%clk 0:03:03]}  Nc6 {[%clk 0:03:03]} 8. Qd2 {[%clk 0:03:04]}  cxd4 {[%clk 0:03:02]} 9. Nxd4 {[%clk 0:03:04]}  Bd7 {[%clk 0:03:02]} 10. Be2 {[%clk 0:03:05]}  Rc8 {[%clk 0:03:02]} 11. O-O {[%clk 0:03:04]}  a6 {[%clk 0:03:03]} 12. Rfd1 {[%clk 0:03:01]}  Nxd4 {[%clk 0:03:02]} 13. Bxd4 {[%clk 0:03:02]}  Bc6 {[%clk 0:03:03]} 14. Rac1 {[%clk 0:03:01]}  Nd7 {[%clk 0:03:03]} 15. b4 {[%clk 0:02:43]}  Bxd4+ {[%clk 0:02:30]} 16. Qxd4 {[%clk 0:02:44]}  Nf6 {[%clk 0:02:31]} 17. Kh1 {[%clk 0:02:28]}  Bd7 {[%clk 0:02:25]} 18. e5 {[%clk 0:02:22]}  dxe5 {[%clk 0:02:19]} 19. Qxe5 {[%clk 0:02:23]}  Qe8 {[%clk 0:02:16]} 20. Nd5 {[%clk 0:02:05]}  Nxd5 {[%clk 0:02:16]} 21. cxd5 {[%clk 0:02:01]}  Bb5 {[%clk 0:02:03]} 22. Rxc8 {[%clk 0:01:56]}  Qxc8 {[%clk 0:02:04]} 23. Bxb5 {[%clk 0:01:56]}  axb5 {[%clk 0:02:05]} 24. Qxe7 {[%clk 0:01:56]}  Qc2 {[%clk 0:02:04]} 25. Qe1 {[%clk 0:01:42]}  Rd8 {[%clk 0:01:45]} 26. d6 {[%clk 0:01:34]}  Qc6 {[%clk 0:01:32]} 27. d7 {[%clk 0:01:17]}  Qe6 {[%clk 0:01:23]} 28. Qc3 {[%clk 0:01:13]}  h5 {[%clk 0:01:13]} 29. Qc7 {[%clk 0:01:02]}  Qe7 {[%clk 0:01:13]} 30. a3 {[%clk 0:00:36]}  b6 {[%clk 0:01:14]} 31. Qc6 {[%clk 0:00:31]}  Qg5 {[%clk 0:01:07]} 32. Re1 {[%clk 0:00:23]}  Kh7 {[%clk 0:01:01]} 33. h3 {[%clk 0:00:12]}  Qd2 {[%clk 0:00:40]} 34. Re7 {[%clk 0:00:10]}  Kg7 {[%clk 0:00:41]} 35. Qc7 {[%clk 0:00:07]}  h4 {[%clk 0:00:15]} 36. Qe5+ {[%clk 0:00:06]}  Kh6 {[%clk 0:00:10]} 37. Rxf7 {[%clk 0:00:03]}  Qd1+ {[%clk 0:00:04]} 38. Kh2 {[%clk 0:00:03]}  Qd2 {[%clk 0:00:04]} 39. Qg7+ {[%clk 0:00:02]}  Kh5 {[%clk 0:00:04]} 40. Qh7+ {[%clk 0:00:02]}  Qh6 {[%clk 0:00:04]} 41. Qxh6+ {[%clk 0:00:01]}  Kxh6 {[%clk 0:00:05]} 42. Re7 {[%clk 0:00:02]}  Kg5 {[%clk 0:00:05]} 43. Re5+ {[%clk 0:00:01]}  Kf6 {[%clk 0:00:05]} 44. Rxb5 {[%clk 0:00:02]}  Rxd7 {[%clk 0:00:05]} 45. Rxb6+ {[%clk 0:00:03]}  Kg5 {[%clk 0:00:06]} 46. a4 {[%clk 0:00:03]}  Rd2 {[%clk 0:00:05]} 47. a5 {[%clk 0:00:04]}  Ra2 {[%clk 0:00:05]} 48. a6 {[%clk 0:00:04]}  Kf5 {[%clk 0:00:06]} 49. Rb5+ {[%clk 0:00:04]}  Kf4 {[%clk 0:00:06]} 50. Ra5 {[%clk 0:00:04]}  Rb2 {[%clk 0:00:03]} 51. a7 {[%clk 0:00:05]}  Ke3 {[%clk 0:00:03]} 52. a8=Q {[%clk 0:00:04]}  Kf2 {[%clk 0:00:04]} 53. Qa7+ {[%clk 0:00:04]}  Kf1 {[%clk 0:00:04]} 54. Ra1+ {[%clk 0:00:04]}  Ke2 {[%clk 0:00:05]} 55. Ra2 {[%clk 0:00:05]}  Rxa2 {[%clk 0:00:03]} 56. Qxa2+ {[%clk 0:00:06]}  Kf1 {[%clk 0:00:03]} 57. g3 {[%clk 0:00:05]}  g5 {[%clk 0:00:04]} 58. gxh4 {[%clk 0:00:04]}  gxh4 {[%clk 0:00:05]} 59. f4 {[%clk 0:00:05]}  Ke1 {[%clk 0:00:06]} 60. Kg2 {[%clk 0:00:05]}  Kd1 {[%clk 0:00:06]} 61. Kf3 {[%clk 0:00:06]}  Ke1 {[%clk 0:00:07]} 62. Qe2# {[%clk 0:00:06]} 1-0


[Site "https://www.chess.com"]

[Event "Titled Tuesday Blitz November 29 Late 2022"]
[White "Nugumanov, Bakhtiyar"]
[Black "Cappelletto, Joshuaede"]
[WhiteFideId "13701797"]
[BlackFideId "2824383"]
[WhiteElo "2287"]
[BlackElo "2237"]
[Result "1-0"]
[Round "10"]
[TimeControl "180+1"]
[Date "2022.11.30"]
[WhiteClock "0:00:51"]
[BlackClock "0:00:02"]

1. e4 {[%clk 0:02:54]}  c5 {[%clk 0:02:59]} 2. Nf3 {[%clk 0:02:54]}  d6 {[%clk 0:02:59]} 3. d4 {[%clk 0:02:54]}  cxd4 {[%clk 0:03:00]} 4. Nxd4 {[%clk 0:02:55]}  Nf6 {[%clk 0:03:00]} 5. Nc3 {[%clk 0:02:55]}  g6 {[%clk 0:03:01]} 6. Be3 {[%clk 0:02:53]}  Bg7 {[%clk 0:03:00]} 7. f3 {[%clk 0:02:53]}  O-O {[%clk 0:03:01]} 8. Qd2 {[%clk 0:02:53]}  Nc6 {[%clk 0:03:01]} 9. O-O-O {[%clk 0:02:53]}  d5 {[%clk 0:03:01]} 10. exd5 {[%clk 0:02:47]}  Nxd5 {[%clk 0:03:01]} 11. Nxc6 {[%clk 0:02:48]}  bxc6 {[%clk 0:03:02]} 12. Bd4 {[%clk 0:02:48]}  e5 {[%clk 0:03:02]} 13. Bc5 {[%clk 0:02:48]}  Re8 {[%clk 0:03:00]} 14. Ne4 {[%clk 0:02:48]}  f5 {[%clk 0:02:59]} 15. Nd6 {[%clk 0:02:42]}  Bf8 {[%clk 0:02:38]} 16. Bc4 {[%clk 0:02:05]}  Be6 {[%clk 0:02:14]} 17. Nb7 {[%clk 0:02:02]}  Qf6 {[%clk 0:02:06]} 18. Bxf8 {[%clk 0:01:59]}  Rxf8 {[%clk 0:02:05]} 19. Nc5 {[%clk 0:01:59]}  Rfd8 {[%clk 0:01:48]} 20. Nxe6 {[%clk 0:01:58]}  Qxe6 {[%clk 0:01:47]} 21. Rhe1 {[%clk 0:01:59]}  Kg7 {[%clk 0:01:44]} 22. Bb3 {[%clk 0:01:36]}  a5 {[%clk 0:01:44]} 23. c4 {[%clk 0:01:23]}  Nb4 {[%clk 0:01:34]} 24. Qc3 {[%clk 0:01:22]}  Rxd1+ {[%clk 0:01:30]} 25. Rxd1 {[%clk 0:01:22]}  c5 {[%clk 0:01:24]} 26. a3 {[%clk 0:01:20]}  Nc6 {[%clk 0:01:08]} 27. Rd5 {[%clk 0:01:20]}  Nd4 {[%clk 0:01:09]} 28. Bd1 {[%clk 0:01:15]}  Rc8 {[%clk 0:01:01]} 29. Qe3 {[%clk 0:01:13]}  Kf6 {[%clk 0:00:59]} 30. Qe1 {[%clk 0:01:12]}  g5 {[%clk 0:00:51]} 31. Qxa5 {[%clk 0:01:11]}  Qe7 {[%clk 0:00:39]} 32. Ba4 {[%clk 0:01:01]}  e4 {[%clk 0:00:30]} 33. Qb6+ {[%clk 0:00:58]}  Ne6 {[%clk 0:00:23]} 34. Bd7 {[%clk 0:00:52]}  exf3 {[%clk 0:00:07]} 35. gxf3 {[%clk 0:00:52]}  Re8 {[%clk 0:00:03]} 36. Bxe6 {[%clk 0:00:50]}  Kg7 {[%clk 0:00:01]} 37. Rd7 {[%clk 0:00:50]}  Qxd7 {[%clk 0:00:01]} 38. Bxd7 {[%clk 0:00:51]}  Re1+ {[%clk 0:00:01]} 39. Kd2 {[%clk 0:00:51]}  Re7 {[%clk 0:00:02]} 40. Qd6 {[%clk 0:00:51]} 1-0


[Site "https://www.chess.com"]

[Event "Titled Tuesday Blitz November 29 Late 2022"]
[White "Olafsson, Helgi"]
[Black "Bjelobrk, Igor"]
[WhiteFideId "2300010"]
[BlackFideId "4300726"]
[WhiteElo "2463"]
[BlackElo "2335"]
[Result "1-0"]
[Round "10"]
[TimeControl "180+1"]
[Date "2022.11.30"]
[WhiteClock "0:02:18"]
[BlackClock "0:02:06"]

1. c4 {[%clk 0:02:44]}  e6 {[%clk 0:02:57]} 2. Nf3 {[%clk 0:02:43]}  d5 {[%clk 0:02:55]} 3. d4 {[%clk 0:02:43]}  c5 {[%clk 0:02:52]} 4. cxd5 {[%clk 0:02:42]}  cxd4 {[%clk 0:02:51]} 5. dxe6 {[%clk 0:02:35]}  Bxe6 {[%clk 0:02:36]} 6. Nxd4 {[%clk 0:02:35]}  Bb4+ {[%clk 0:02:32]} 7. Nc3 {[%clk 0:02:34]}  Bxc3+ {[%clk 0:02:28]} 8. bxc3 {[%clk 0:02:33]}  Bd5 {[%clk 0:02:28]} 9. f3 {[%clk 0:02:28]}  Qc7 {[%clk 0:02:11]} 10. Nb5 {[%clk 0:02:20]}  Qc5 {[%clk 0:02:06]} 11. Qxd5 {[%clk 0:02:18]}  Qxd5 {[%clk 0:02:06]} 1-0


[Site "https://www.chess.com"]

[Event "Titled Tuesday Blitz November 29 Late 2022"]
[White "Pakleza, Zbigniew"]
[Black "Indjic, Aleksandar"]
[WhiteFideId "1119290"]
[BlackFideId "911925"]
[WhiteElo "2411"]
[BlackElo "2592"]
[Result "0-1"]
[Round "10"]
[TimeControl "180+1"]
[Date "2022.11.30"]
[WhiteClock "0:00:03"]
[BlackClock "0:01:05"]

1. d4 {[%clk 0:02:59]}  Nf6 {[%clk 0:02:59]} 2. Nf3 {[%clk 0:03:00]}  e6 {[%clk 0:02:59]} 3. Bf4 {[%clk 0:03:00]}  c5 {[%clk 0:02:59]} 4. c3 {[%clk 0:03:00]}  Nc6 {[%clk 0:02:55]} 5. e3 {[%clk 0:03:00]}  Nh5 {[%clk 0:02:51]} 6. Bg5 {[%clk 0:03:00]}  Qb6 {[%clk 0:02:50]} 7. Qb3 {[%clk 0:02:59]}  h6 {[%clk 0:02:49]} 8. Bh4 {[%clk 0:03:00]}  g5 {[%clk 0:02:49]} 9. Bg3 {[%clk 0:03:00]}  Nxg3 {[%clk 0:02:49]} 10. hxg3 {[%clk 0:03:01]}  Bg7 {[%clk 0:02:48]} 11. Nbd2 {[%clk 0:03:02]}  d5 {[%clk 0:02:47]} 12. Be2 {[%clk 0:02:52]}  g4 {[%clk 0:02:43]} 13. Nh4 {[%clk 0:02:47]}  h5 {[%clk 0:02:42]} 14. Qxb6 {[%clk 0:02:32]}  axb6 {[%clk 0:02:41]} 15. a3 {[%clk 0:02:33]}  Bd7 {[%clk 0:02:40]} 16. Rd1 {[%clk 0:02:27]}  Ke7 {[%clk 0:02:38]} 17. f3 {[%clk 0:02:26]}  Bf6 {[%clk 0:02:32]} 18. fxg4 {[%clk 0:02:16]}  hxg4 {[%clk 0:02:32]} 19. Kf2 {[%clk 0:02:13]}  Rag8 {[%clk 0:02:28]} 20. b4 {[%clk 0:02:00]}  c4 {[%clk 0:02:18]} 21. e4 {[%clk 0:01:40]}  Nxd4 {[%clk 0:02:15]} 22. cxd4 {[%clk 0:01:34]}  Bxd4+ {[%clk 0:02:15]} 23. Ke1 {[%clk 0:01:23]}  Ba4 {[%clk 0:02:13]} 24. exd5 {[%clk 0:01:17]}  Bxd1 {[%clk 0:02:12]} 25. Kxd1 {[%clk 0:01:15]}  b5 {[%clk 0:02:10]} 26. dxe6 {[%clk 0:01:15]}  fxe6 {[%clk 0:02:10]} 27. Kc2 {[%clk 0:01:13]}  Be5 {[%clk 0:02:02]} 28. Ne4 {[%clk 0:01:10]}  Rg7 {[%clk 0:01:52]} 29. a4 {[%clk 0:00:55]}  Ra8 {[%clk 0:01:50]} 30. a5 {[%clk 0:00:50]}  b6 {[%clk 0:01:51]} 31. Rb1 {[%clk 0:00:21]}  bxa5 {[%clk 0:01:50]} 32. bxa5 {[%clk 0:00:22]}  Rxa5 {[%clk 0:01:49]} 33. Nc3 {[%clk 0:00:22]}  Bxc3 {[%clk 0:01:39]} 34. Kxc3 {[%clk 0:00:23]}  Rg5 {[%clk 0:01:39]} 35. Bd1 {[%clk 0:00:15]}  Ra3+ {[%clk 0:01:38]} 36. Kb4 {[%clk 0:00:12]}  Rxg3 {[%clk 0:01:38]} 37. Ra1 {[%clk 0:00:13]}  Kf6 {[%clk 0:01:36]} 38. Bc2 {[%clk 0:00:10]}  Re3 {[%clk 0:01:33]} 39. Rf1+ {[%clk 0:00:06]}  Kg7 {[%clk 0:01:32]} 40. Rf2 {[%clk 0:00:06]}  Re1 {[%clk 0:01:15]} 41. Rd2 {[%clk 0:00:05]}  Rh1 {[%clk 0:01:12]} 42. g3 {[%clk 0:00:05]}  Rh3 {[%clk 0:01:12]} 43. Rd7+ {[%clk 0:00:04]}  Kf6 {[%clk 0:01:13]} 44. Ng2 {[%clk 0:00:04]}  Rxg3 {[%clk 0:01:13]} 45. Nf4 {[%clk 0:00:04]}  Rf3 {[%clk 0:01:12]} 46. Ne2 {[%clk 0:00:04]}  g3 {[%clk 0:01:12]} 47. Nd4 {[%clk 0:00:03]}  Rf2 {[%clk 0:01:12]} 48. Rd8 {[%clk 0:00:02]}  Rxc2 {[%clk 0:01:05]} 49. Nxc2 {[%clk 0:00:03]}  g2 {[%clk 0:01:05]} 50. Rf8+ {[%clk 0:00:03]}  Kg7 {[%clk 0:01:05]} 0-1


[Site "https://www.chess.com"]

[Event "Titled Tuesday Blitz November 29 Late 2022"]
[White "Pein, Jonathan"]
[Black "Tarnowska, Aleksandra"]
[WhiteFideId "417092"]
[BlackFideId "1180967"]
[WhiteElo "2227"]
[BlackElo "1776"]
[Result "0-1"]
[Round "10"]
[TimeControl "180+1"]
[Date "2022.11.30"]
[WhiteClock "0:01:26"]
[BlackClock "0:00:17"]

1. e4 {[%clk 0:02:59]}  c5 {[%clk 0:02:59]} 2. Nf3 {[%clk 0:02:59]}  e6 {[%clk 0:02:59]} 3. d4 {[%clk 0:02:52]}  cxd4 {[%clk 0:02:59]} 4. Nxd4 {[%clk 0:02:53]}  a6 {[%clk 0:02:59]} 5. Nc3 {[%clk 0:02:51]}  Qc7 {[%clk 0:02:58]} 6. Be2 {[%clk 0:02:44]}  b5 {[%clk 0:02:54]} 7. a3 {[%clk 0:02:43]}  Bb7 {[%clk 0:02:54]} 8. O-O {[%clk 0:02:42]}  Nf6 {[%clk 0:02:53]} 9. Bf3 {[%clk 0:02:42]}  Nc6 {[%clk 0:02:45]} 10. Be3 {[%clk 0:02:39]}  Be7 {[%clk 0:02:44]} 11. Ndxb5 {[%clk 0:02:36]}  axb5 {[%clk 0:02:42]} 12. Nxb5 {[%clk 0:02:37]}  Qd8 {[%clk 0:02:27]} 13. e5 {[%clk 0:02:35]}  Nd5 {[%clk 0:02:19]} 14. Bxd5 {[%clk 0:02:35]}  exd5 {[%clk 0:02:20]} 15. Qxd5 {[%clk 0:02:34]}  O-O {[%clk 0:02:17]} 16. Rad1 {[%clk 0:02:31]}  Rb8 {[%clk 0:01:54]} 17. c4 {[%clk 0:02:24]}  Bg5 {[%clk 0:01:12]} 18. f4 {[%clk 0:02:16]}  Bh4 {[%clk 0:00:44]} 19. Qxd7 {[%clk 0:02:15]}  Qa5 {[%clk 0:00:33]} 20. b4 {[%clk 0:02:11]}  Qa4 {[%clk 0:00:31]} 21. g3 {[%clk 0:02:00]}  Rfd8 {[%clk 0:00:27]} 22. Qf5 {[%clk 0:01:51]}  Rxd1 {[%clk 0:00:26]} 23. Nc3 {[%clk 0:01:43]}  Rxf1+ {[%clk 0:00:25]} 24. Kxf1 {[%clk 0:01:44]}  Qxa3 {[%clk 0:00:23]} 25. Nd5 {[%clk 0:01:41]}  Ne7 {[%clk 0:00:20]} 26. Nxe7+ {[%clk 0:01:39]}  Bxe7 {[%clk 0:00:20]} 27. Kf2 {[%clk 0:01:29]}  Qb2+ {[%clk 0:00:18]} 28. Ke1 {[%clk 0:01:27]}  Bxb4+ {[%clk 0:00:18]} 29. Kd1 {[%clk 0:01:26]}  Bf3# {[%clk 0:00:17]} 0-1


[Site "https://www.chess.com"]

[Event "Titled Tuesday Blitz November 29 Late 2022"]
[White "Petrovic, Aleksa"]
[Black "Arkell, Keith C"]
[WhiteFideId "967629"]
[BlackFideId "400270"]
[WhiteElo "2224"]
[BlackElo "2342"]
[Result "0-1"]
[Round "10"]
[TimeControl "180+1"]
[Date "2022.11.30"]
[WhiteClock "0:00:01"]
[BlackClock "0:01:49"]

1. d4 {[%clk 0:03:00]}  e6 {[%clk 0:02:51]} 2. Nf3 {[%clk 0:02:58]}  Nf6 {[%clk 0:02:49]} 3. c4 {[%clk 0:02:58]}  Bb4+ {[%clk 0:02:48]} 4. Nbd2 {[%clk 0:02:56]}  c5 {[%clk 0:02:47]} 5. dxc5 {[%clk 0:02:54]}  Na6 {[%clk 0:02:47]} 6. g3 {[%clk 0:02:53]}  Nxc5 {[%clk 0:02:46]} 7. Bg2 {[%clk 0:02:53]}  Nce4 {[%clk 0:02:47]} 8. O-O {[%clk 0:02:53]}  Nxd2 {[%clk 0:02:47]} 9. Bxd2 {[%clk 0:02:53]}  Bxd2 {[%clk 0:02:46]} 10. Qxd2 {[%clk 0:02:54]}  d5 {[%clk 0:02:46]} 11. cxd5 {[%clk 0:02:50]}  Qxd5 {[%clk 0:02:46]} 12. Qb4 {[%clk 0:02:38]}  a5 {[%clk 0:02:40]} 13. Qa3 {[%clk 0:02:35]}  Qb5 {[%clk 0:02:31]} 14. Nd4 {[%clk 0:01:43]}  Qb4 {[%clk 0:02:31]} 15. Nc2 {[%clk 0:01:43]}  Qxa3 {[%clk 0:02:30]} 16. bxa3 {[%clk 0:01:39]}  Bd7 {[%clk 0:02:27]} 17. Bxb7 {[%clk 0:01:38]}  Rb8 {[%clk 0:02:27]} 18. Bf3 {[%clk 0:01:37]}  Ke7 {[%clk 0:02:24]} 19. Rab1 {[%clk 0:01:34]}  Rhc8 {[%clk 0:02:23]} 20. Ne3 {[%clk 0:01:33]}  Rxb1 {[%clk 0:02:21]} 21. Rxb1 {[%clk 0:01:34]}  Rc3 {[%clk 0:02:19]} 22. Rb3 {[%clk 0:01:33]}  Rc1+ {[%clk 0:02:19]} 23. Kg2 {[%clk 0:01:32]}  g5 {[%clk 0:02:18]} 24. Rb7 {[%clk 0:01:06]}  Rc3 {[%clk 0:02:16]} 25. Rb3 {[%clk 0:01:05]}  Rc7 {[%clk 0:02:14]} 26. Ng4 {[%clk 0:01:01]}  Nxg4 {[%clk 0:02:05]} 27. Bxg4 {[%clk 0:01:02]}  f5 {[%clk 0:02:05]} 28. Bf3 {[%clk 0:00:57]}  g4 {[%clk 0:02:05]} 29. Bb7 {[%clk 0:00:41]}  Rc2 {[%clk 0:02:05]} 30. Ba6 {[%clk 0:00:38]}  Rxa2 {[%clk 0:02:05]} 31. Bd3 {[%clk 0:00:29]}  Bc6+ {[%clk 0:02:04]} 32. Kf1 {[%clk 0:00:21]}  Ra1+ {[%clk 0:02:04]} 33. Rb1 {[%clk 0:00:18]}  Rxa3 {[%clk 0:02:04]} 34. Ke1 {[%clk 0:00:19]}  Kd6 {[%clk 0:02:04]} 35. Kd2 {[%clk 0:00:19]}  a4 {[%clk 0:02:01]} 36. Kc2 {[%clk 0:00:17]}  Bd5 {[%clk 0:01:55]} 37. Kb2 {[%clk 0:00:14]}  Rb3+ {[%clk 0:01:55]} 38. Ka1 {[%clk 0:00:13]}  Rxb1+ {[%clk 0:01:52]} 39. Kxb1 {[%clk 0:00:13]}  Kc5 {[%clk 0:01:53]} 40. Kb2 {[%clk 0:00:13]}  Kb4 {[%clk 0:01:54]} 41. Ba6 {[%clk 0:00:07]}  a3+ {[%clk 0:01:53]} 42. Ka1 {[%clk 0:00:07]}  Kc3 {[%clk 0:01:53]} 43. Bc8 {[%clk 0:00:03]}  Kd2 {[%clk 0:01:52]} 44. Ba6 {[%clk 0:00:03]}  Ke1 {[%clk 0:01:52]} 45. f4 {[%clk 0:00:02]}  Kf2 {[%clk 0:01:49]} 46. Bc8 {[%clk 0:00:01]}  Kg1 {[%clk 0:01:49]} 0-1


[Site "https://www.chess.com"]

[Event "Titled Tuesday Blitz November 29 Late 2022"]
[White "Pinheiro, Iung Alicio de O."]
[Black "Bas Mas, Jose Joaquin"]
[WhiteFideId "2104350"]
[BlackFideId "22219064"]
[WhiteElo "2283"]
[BlackElo "2233"]
[Result "1-0"]
[Round "10"]
[TimeControl "180+1"]
[Date "2022.11.30"]
[WhiteClock "0:00:17"]
[BlackClock "0:00:01"]

1. e4 {[%clk 0:03:00]}  c5 {[%clk 0:02:59]} 2. Nf3 {[%clk 0:03:00]}  Nc6 {[%clk 0:02:57]} 3. Bc4 {[%clk 0:02:59]}  e6 {[%clk 0:02:55]} 4. O-O {[%clk 0:02:59]}  Nf6 {[%clk 0:02:52]} 5. Re1 {[%clk 0:02:48]}  Nxe4 {[%clk 0:02:46]} 6. Rxe4 {[%clk 0:02:42]}  d5 {[%clk 0:02:45]} 7. Bxd5 {[%clk 0:02:42]}  Qxd5 {[%clk 0:02:44]} 8. Nc3 {[%clk 0:02:42]}  Qd7 {[%clk 0:02:41]} 9. d4 {[%clk 0:02:36]}  cxd4 {[%clk 0:02:30]} 10. Nxd4 {[%clk 0:02:37]}  Be7 {[%clk 0:02:29]} 11. Be3 {[%clk 0:01:56]}  O-O {[%clk 0:02:23]} 12. Qh5 {[%clk 0:01:46]}  f5 {[%clk 0:01:56]} 13. Nxc6 {[%clk 0:01:24]}  fxe4 {[%clk 0:01:49]} 14. Ne5 {[%clk 0:01:20]}  Qe8 {[%clk 0:01:27]} 15. Qg4 {[%clk 0:01:13]}  Bf6 {[%clk 0:01:17]} 16. Qxe4 {[%clk 0:01:13]}  Bd7 {[%clk 0:01:07]} 17. Bc5 {[%clk 0:01:05]}  Bxe5 {[%clk 0:00:58]} 18. Qxe5 {[%clk 0:01:06]}  Rf5 {[%clk 0:00:57]} 19. Qe3 {[%clk 0:01:01]}  Bc6 {[%clk 0:00:48]} 20. Ne2 {[%clk 0:00:56]}  Rd8 {[%clk 0:00:38]} 21. Ng3 {[%clk 0:00:55]}  Rfd5 {[%clk 0:00:34]} 22. h3 {[%clk 0:00:48]}  Qg6 {[%clk 0:00:30]} 23. Re1 {[%clk 0:00:42]}  Rd1 {[%clk 0:00:28]} 24. Kh2 {[%clk 0:00:37]}  Rxe1 {[%clk 0:00:27]} 25. Qxe1 {[%clk 0:00:38]}  Rd5 {[%clk 0:00:24]} 26. b4 {[%clk 0:00:37]}  h5 {[%clk 0:00:24]} 27. f3 {[%clk 0:00:32]}  Rg5 {[%clk 0:00:19]} 28. Qf2 {[%clk 0:00:32]}  h4 {[%clk 0:00:18]} 29. Nf1 {[%clk 0:00:32]}  b6 {[%clk 0:00:15]} 30. Be3 {[%clk 0:00:31]}  Rb5 {[%clk 0:00:13]} 31. a3 {[%clk 0:00:30]}  Re5 {[%clk 0:00:12]} 32. Qxh4 {[%clk 0:00:28]}  Qxc2 {[%clk 0:00:10]} 33. Qd8+ {[%clk 0:00:26]}  Kf7 {[%clk 0:00:09]} 34. Qd4 {[%clk 0:00:22]}  Rd5 {[%clk 0:00:08]} 35. Qg4 {[%clk 0:00:20]}  Qf5 {[%clk 0:00:07]} 36. Qh4 {[%clk 0:00:19]}  Qf6 {[%clk 0:00:07]} 37. Qf2 {[%clk 0:00:17]}  Rd7 {[%clk 0:00:06]} 38. Ng3 {[%clk 0:00:18]}  e5 {[%clk 0:00:06]} 39. Nh5 {[%clk 0:00:18]}  Qe6 {[%clk 0:00:06]} 40. Ng3 {[%clk 0:00:18]}  Kg8 {[%clk 0:00:04]} 41. Qe2 {[%clk 0:00:17]}  Rf7 {[%clk 0:00:04]} 42. Bf2 {[%clk 0:00:18]}  e4 {[%clk 0:00:03]} 43. Nxe4 {[%clk 0:00:18]}  Bxe4 {[%clk 0:00:02]} 44. fxe4 {[%clk 0:00:18]}  Qe5+ {[%clk 0:00:02]} 45. Bg3 {[%clk 0:00:19]}  Qe6 {[%clk 0:00:03]} 46. e5 {[%clk 0:00:19]}  Rd7 {[%clk 0:00:03]} 47. Qh5 {[%clk 0:00:19]}  a5 {[%clk 0:00:02]} 48. bxa5 {[%clk 0:00:18]}  bxa5 {[%clk 0:00:03]} 49. Qf3 {[%clk 0:00:19]}  Qd5 {[%clk 0:00:02]} 50. Qf5 {[%clk 0:00:19]}  Re7 {[%clk 0:00:01]} 51. Qc8+ {[%clk 0:00:18]}  Kh7 {[%clk 0:00:01]} 52. Qc2+ {[%clk 0:00:18]}  Kg8 {[%clk 0:00:01]} 53. Qc3 {[%clk 0:00:17]} 1-0


[Site "https://www.chess.com"]

[Event "Titled Tuesday Blitz November 29 Late 2022"]
[White "Przybylski, Wojciech"]
[Black "Kleiman, Jake"]
[WhiteFideId "1117599"]
[BlackFideId "2020041"]
[WhiteElo "2221"]
[BlackElo "2616"]
[Result "0-1"]
[Round "10"]
[TimeControl "180+1"]
[Date "2022.11.30"]
[WhiteClock "0:00:07"]
[BlackClock "0:00:58"]

1. e4 {[%clk 0:03:00]}  e5 {[%clk 0:02:59]} 2. Nf3 {[%clk 0:02:59]}  Nc6 {[%clk 0:02:59]} 3. Bb5 {[%clk 0:02:57]}  a6 {[%clk 0:03:00]} 4. Ba4 {[%clk 0:02:58]}  Nf6 {[%clk 0:03:00]} 5. O-O {[%clk 0:02:57]}  b5 {[%clk 0:03:01]} 6. Bb3 {[%clk 0:02:57]}  Bc5 {[%clk 0:03:02]} 7. d3 {[%clk 0:02:56]}  O-O {[%clk 0:03:01]} 8. Nc3 {[%clk 0:02:52]}  h6 {[%clk 0:03:01]} 9. Be3 {[%clk 0:02:50]}  d6 {[%clk 0:03:01]} 10. h3 {[%clk 0:02:49]}  Re8 {[%clk 0:03:01]} 11. Nd5 {[%clk 0:02:45]}  Rb8 {[%clk 0:02:57]} 12. c3 {[%clk 0:02:37]}  Bxe3 {[%clk 0:02:55]} 13. fxe3 {[%clk 0:02:36]}  Nxd5 {[%clk 0:02:49]} 14. Bxd5 {[%clk 0:02:33]}  Ne7 {[%clk 0:02:50]} 15. Bb3 {[%clk 0:01:38]}  Be6 {[%clk 0:02:17]} 16. Kh2 {[%clk 0:01:36]}  Ng6 {[%clk 0:02:13]} 17. Qe1 {[%clk 0:01:33]}  d5 {[%clk 0:02:07]} 18. Rd1 {[%clk 0:00:57]}  c5 {[%clk 0:02:06]} 19. exd5 {[%clk 0:00:55]}  Bxd5 {[%clk 0:02:06]} 20. Bxd5 {[%clk 0:00:43]}  Qxd5 {[%clk 0:02:06]} 21. e4 {[%clk 0:00:40]}  Qxa2 {[%clk 0:02:04]} 22. Qf2 {[%clk 0:00:40]}  Rbc8 {[%clk 0:01:59]} 23. Ra1 {[%clk 0:00:39]}  Qe6 {[%clk 0:01:59]} 24. Ng1 {[%clk 0:00:35]}  Nf4 {[%clk 0:01:57]} 25. Rfd1 {[%clk 0:00:28]}  Red8 {[%clk 0:01:48]} 26. d4 {[%clk 0:00:26]}  cxd4 {[%clk 0:01:47]} 27. cxd4 {[%clk 0:00:25]}  Qf6 {[%clk 0:01:39]} 28. d5 {[%clk 0:00:22]}  Nxd5 {[%clk 0:01:37]} 29. Qxf6 {[%clk 0:00:19]}  Nxf6 {[%clk 0:01:38]} 30. Rxd8+ {[%clk 0:00:14]}  Rxd8 {[%clk 0:01:39]} 31. Rxa6 {[%clk 0:00:14]}  Nxe4 {[%clk 0:01:38]} 32. Nf3 {[%clk 0:00:14]}  Rd5 {[%clk 0:01:37]} 33. Ra8+ {[%clk 0:00:13]}  Kh7 {[%clk 0:01:37]} 34. Ra7 {[%clk 0:00:13]}  f6 {[%clk 0:01:34]} 35. Nh4 {[%clk 0:00:12]}  Nd6 {[%clk 0:01:32]} 36. Rd7 {[%clk 0:00:12]}  Rd4 {[%clk 0:01:32]} 37. Nf3 {[%clk 0:00:11]}  Rd1 {[%clk 0:01:29]} 38. Nh4 {[%clk 0:00:11]}  Rd4 {[%clk 0:01:03]} 39. Nf3 {[%clk 0:00:10]}  Rd5 {[%clk 0:01:04]} 40. Kg3 {[%clk 0:00:04]}  Ne4+ {[%clk 0:01:03]} 41. Kg4 {[%clk 0:00:04]}  Rxd7 {[%clk 0:01:04]} 42. Kf5 {[%clk 0:00:04]}  Nd2 {[%clk 0:01:03]} 43. Ke6 {[%clk 0:00:05]}  Rd3 {[%clk 0:01:02]} 44. Nh4 {[%clk 0:00:04]}  Nc4 {[%clk 0:00:59]} 45. Nf5 {[%clk 0:00:04]}  Nxb2 {[%clk 0:00:59]} 46. Kf7 {[%clk 0:00:04]}  Nc4 {[%clk 0:00:56]} 47. Ne7 {[%clk 0:00:03]}  Rd7 {[%clk 0:00:56]} 48. g4 {[%clk 0:00:02]}  b4 {[%clk 0:00:56]} 49. h4 {[%clk 0:00:03]}  b3 {[%clk 0:00:56]} 50. g5 {[%clk 0:00:03]}  hxg5 {[%clk 0:00:57]} 51. hxg5 {[%clk 0:00:03]}  fxg5 {[%clk 0:00:57]} 52. Kf8 {[%clk 0:00:03]}  Rxe7 {[%clk 0:00:58]} 53. Kxe7 {[%clk 0:00:03]}  b2 {[%clk 0:00:58]} 54. Kf7 {[%clk 0:00:04]}  b1=Q {[%clk 0:00:58]} 55. Ke6 {[%clk 0:00:05]}  e4 {[%clk 0:00:58]} 56. Kf5 {[%clk 0:00:05]}  e3+ {[%clk 0:00:58]} 57. Kg4 {[%clk 0:00:05]}  e2 {[%clk 0:00:59]} 58. Kh5 {[%clk 0:00:05]}  g4 {[%clk 0:00:57]} 59. Kh4 {[%clk 0:00:05]}  g3 {[%clk 0:00:57]} 60. Kh3 {[%clk 0:00:06]}  g2 {[%clk 0:00:58]} 61. Kh2 {[%clk 0:00:06]}  g1=Q+ {[%clk 0:00:58]} 62. Kh3 {[%clk 0:00:06]}  Qf5+ {[%clk 0:00:58]} 63. Kh4 {[%clk 0:00:06]}  Qfg5+ {[%clk 0:00:58]} 64. Kh3 {[%clk 0:00:06]}  Qg6 {[%clk 0:00:58]} 65. Kh4 {[%clk 0:00:06]}  e1=Q+ {[%clk 0:00:58]} 66. Kh3 {[%clk 0:00:07]}  Qeg3# {[%clk 0:00:58]} 0-1


[Site "https://www.chess.com"]